bitfinex-derivatives/quotes_ETHF0:USTF0_20250906
["timestamp","ask_amount","ask_price","bid_price","bid_amount"]
[1757142281298,5.56132738,4305.7,4305.1,0.3075]
[1757142281597,0.3963,4305.2,4305.1,0.93677]
[1757142281789,0.3963,4305.2,4305.1,0.7045]
[1757142282093,0.6621,4305.2,4305.1,0.7045]
[1757142282797,4.75763495,4305.2,4305.1,0.7045]
[1757142283097,5.32929923,4305.2,4305.1,0.7045]
[1757142283398,4.75763495,4305.2,4305.1,0.7045]
[1757142287487,3.6041,4305.2,4305.1,0.7045]
[1757142288191,0.2007,4305.2,4305.1,0.7045]
[1757142288590,0.77199192,4305.2,4305.1,0.7045]
[1757142288794,0.57129192,4305.2,4305.1,0.7045]
[1757142288995,0.1956,4305.2,4305.1,0.397]
[1757142289197,0.76689192,4305.2,4305.1,0.7125]
[1757142289992,3.97469192,4305.2,4305.1,0.7125]
[1757142295405,4.44569192,4305.2,4305.1,0.7125]
[1757142295605,4.44569192,4305.2,4305.1,0.5092]
[1757142295814,4.44569192,4305.2,4305.1,0.3155]
[1757142296508,4.44569192,4305.2,4305.1,0.5165]
[1757142297112,5.33342687,4305.2,4304.6,0.3155]
[1757142297303,3.8744,4304.7,4304.6,0.5478]
[1757142297504,4.44569192,4304.7,4304.6,0.7488]
[1757142297704,4.44569192,4304.7,4304.6,0.5165]
[1757142298004,4.44569192,4304.7,4304.6,0.7111]
[1757142298203,4.18009192,4304.7,4304.6,0.7111]
[1757142300610,4.44569192,4304.7,4304.6,0.7111]
[1757142301115,4.44569192,4304.7,4304.1,0.3155]
[1757142301314,4.76213495,4304.2,4304.1,0.3155]
[1757142301517,5.33342687,4304.2,4304.1,0.3155]
[1757142301815,5.33342687,4304.2,4303.6,0.3155]
[1757142302005,0.401,4303.7,4303.6,0.5165]
[1757142302206,0.97229192,4303.7,4303.6,0.5165]
[1757142302405,1.23789192,4303.7,4303.6,0.7111]
[1757142308117,2.12562687,4303.7,4303.6,0.3155]
[1757142308313,9.33342687,4303.7,4303.1,0.3155]
[1757142308521,0.6666,4302.7,4302.6,0.5165]
[1757142308707,4.44569192,4302.7,4302.6,0.5165]
[1757142316116,4.44569192,4302.7,4302.6,0.3155]
[1757142319519,4.44569192,4302.7,4302.6,0.5186]
[1757142321824,4.18009192,4302.7,4302.6,0.7201]
[1757142322422,0.1996,4303.1,4303.0,0.3225]
[1757142322612,0.79501488,4303.1,4303.0,0.5256]
[1757142323023,0.79501488,4303.1,4303.0,0.8395]
[1757142323910,1.26231488,4303.1,4303.0,0.4349]
[1757142324113,1.26231488,4303.1,4302.6,0.3139]
[1757142324322,0.1996,4302.7,4302.6,0.7185]
[1757142324521,0.79501488,4302.7,4302.6,0.7185]
[1757142325817,0.99621488,4302.7,4302.6,0.7185]
[1757142326818,0.79501488,4302.7,4302.6,0.7185]
[1757142327722,1.26281488,4302.7,4302.6,0.7185]
[1757142327922,0.99621488,4302.7,4302.6,0.7185]
[1757142333126,0.59541488,4302.7,4302.6,0.7185]
[1757142333323,0.1996,4302.7,4302.6,0.7185]
[1757142334032,0.79501488,4302.7,4302.6,0.7185]
[1757142334221,0.99621488,4302.7,4302.6,0.7185]
[1757142334422,1.26281488,4302.7,4302.6,0.517]
[1757142340128,1.26662161,4302.7,4302.6,0.517]
[1757142341634,1.26662161,4302.7,4302.5,0.3139]
[1757142341838,1.26662161,4302.6,4302.5,0.3139]
[1757142342143,1.26662161,4302.6,4302.5,0.517]
[1757142346543,1.26662161,4302.6,4302.5,0.638]
[1757142347850,0.79882161,4302.6,4302.5,0.8395]
[1757142348050,1.00002161,4302.6,4302.5,0.8395]
[1757142348249,1.26662161,4302.6,4302.5,0.8395]
[1757142350152,1.00002161,4302.6,4302.2,0.233]
[1757142350355,0.3925,4302.4,4302.3,0.7304]
[1757142350554,0.99172161,4302.4,4302.3,0.7304]
[1757142354459,0.59922161,4302.4,4302.3,0.7304]
[1757142354656,0.79292161,4302.4,4302.3,0.7304]
[1757142354862,0.99172161,4302.4,4302.3,0.7304]
[1757142355062,1.25792161,4302.4,4302.3,0.7304]
[1757142355263,0.99172161,4302.4,4302.3,0.7304]
[1757142358269,1.25792161,4302.4,4302.3,0.7304]
[1757142361766,1.25792161,4302.4,4302.3,0.311]
[1757142362070,0.99172161,4302.4,4302.3,0.7304]
[1757142362573,1.25792161,4302.4,4302.3,0.7304]
[1757142363271,1.25792161,4302.4,4302.3,0.311]
[1757142363876,1.25792161,4302.4,4302.3,0.5193]
[1757142365374,0.99172161,4302.4,4302.3,0.7304]
[1757142367074,1.25792161,4302.4,4302.3,0.7304]
[1757142367670,1.25792161,4302.4,4302.3,0.5193]
[1757142367875,1.98950002,4302.4,4302.3,0.5193]
[1757142372172,1.98950002,4302.4,4302.1,0.311]
[1757142372371,0.6587,4302.2,4302.1,0.311]
[1757142372572,1.25792161,4302.2,4301.8,3.2078]
[1757142372776,1.39027841,4302.0,4301.9,0.311]
[1757142373074,1.98950002,4302.0,4301.9,0.311]
[1757142373279,1.98950002,4302.0,4301.9,0.5193]
[1757142378978,1.98950002,4302.0,4301.9,0.311]
[1757142379183,1.72330002,4302.0,4301.9,0.7261]
[1757142379781,1.98960002,4302.0,4301.9,0.7261]
[1757142381080,1.72330002,4302.0,4301.9,0.7261]
[1757142381979,1.98960002,4302.0,4301.9,0.7261]
[1757142382680,1.72330002,4302.0,4301.9,0.7261]
[1757142383781,0.99172161,4302.0,4301.9,0.7261]
[1757142384079,0.59922161,4302.0,4301.9,0.7261]
[1757142384282,0.81322161,4302.0,4301.9,0.7261]
[1757142385672,0.214,4302.0,4301.9,0.7261]
[1757142385868,0.81311842,4302.0,4301.9,0.7261]
[1757142387778,0.59911842,4302.0,4301.9,0.7261]
[1757142391377,0.59911842,4302.0,4301.9,3.9339]
[1757142395183,3.2078,4302.9,4301.9,8.16635]
[1757142395402,3.4218,4302.9,4302.8,0.7282]
[1757142395689,4.22139395,4302.9,4302.8,0.7282]
[1757142395884,4.48769395,4302.9,4302.8,0.7282]
[1757142399079,3.80699395,4302.9,4302.8,0.7282]
[1757142402576,4.02099395,4302.9,4302.8,0.7282]
[1757142403189,4.22139395,4302.9,4302.8,0.7282]
[1757142403483,0.4144,4302.9,4302.8,0.7282]
[1757142411086,0.6813,4302.9,4302.8,0.7282]
[1757142411288,0.6813,4302.9,4302.8,0.5125]
[1757142412189,1.27895822,4302.9,4302.8,0.5125]
[1757142412389,1.01205822,4302.9,4302.8,0.7063]
[1757142413492,0.81165822,4302.9,4302.8,0.7063]
[1757142415493,0.59765822,4302.9,4302.8,0.7063]
[1757142417194,1.00265822,4302.9,4302.8,0.7063]
[1757142418993,0.59765822,4302.9,4302.8,0.7063]
[1757142419388,0.80045822,4302.9,4302.8,0.7063]
[1757142420701,1.00265822,4302.9,4302.8,0.7063]
[1757142422590,0.59765822,4302.9,4302.8,0.7063]
[1757142422795,0.2669,4304.1,4302.9,0.3151]
[1757142422990,0.405,4304.1,4304.0,0.8347]
[1757142423199,1.00366238,4304.1,4304.0,0.8347]
[1757142427704,0.59866238,4304.1,4304.0,0.8347]
[1757142428205,3.2078,4304.2,4304.1,0.3151]
[1757142428505,3.2078,4304.9,4304.1,0.7083]
[1757142428702,3.4106,4304.9,4304.8,0.7083]
[1757142428903,4.00833652,4304.9,4304.8,0.9413]
[1757142429103,4.21053652,4304.9,4304.8,0.9413]
[1757142429998,1.00273652,4304.9,4304.8,0.9413]
[1757142431501,1.26963652,4304.9,4304.8,0.9413]
[1757142432313,1.26963652,4304.9,4304.8,0.5481]
[1757142432603,0.2669,4304.5,4304.0,3.3342]
[1757142432808,0.405,4304.2,4304.1,0.9413]
[1757142434805,3.325,4305.0,4304.1,0.6262]
[1757142435010,3.325,4305.0,4304.2,0.7083]
[1757142435011,0.2028,4304.3,4304.2,0.7083]
[1757142435211,0.405,4304.3,4304.2,0.7083]
[1757142435418,0.2028,4304.3,4304.2,0.7083]
[1757142436815,0.405,4304.3,4304.2,0.7083]
[1757142437121,0.6719,4304.3,4304.2,0.9413]
[1757142438106,3.2825,4305.5,4304.2,0.9413]
[1757142438312,0.2028,4304.3,4304.2,0.9413]
[1757142438615,0.405,4304.3,4304.2,0.9413]
[1757142441613,0.6707,4304.3,4304.2,0.3151]
[1757142441913,0.6707,4304.3,4304.2,0.5481]
[1757142442511,0.6707,4304.3,4304.2,0.7459]
[1757142446622,0.6707,4304.3,4304.2,0.5129]
[1757142446917,0.671,4303.6,4303.5,0.3242]
[1757142447112,0.2662,4303.5,4303.0,3.3342]
[1757142447314,0.671,4303.2,4303.1,0.7431]
[1757142447814,0.671,4303.2,4303.1,0.5453]
[1757142448122,1.26782816,4303.2,4303.1,0.5453]
[1757142450337,5.50021816,4303.2,4303.1,0.233]
[1757142450829,5.26782816,4303.2,4302.7,0.5453]
[1757142451133,0.671,4302.8,4302.7,0.233]
[1757142451319,0.671,4302.8,4302.4,0.3123]
[1757142451320,1.26782816,4302.8,4302.3,0.5453]
[1757142451520,0.671,4302.4,4302.3,0.5453]
[1757142451739,1.26764134,4302.4,4302.3,0.5453]
[1757142451925,0.671,4302.4,4302.3,0.5453]
[1757142452126,1.26763591,4302.4,4302.3,0.5453]
[1757142452425,0.671,4302.4,4302.3,0.5453]
[1757142453444,0.671,4302.4,4302.3,0.7431]
[1757142454939,0.2114,4302.6,4302.5,0.8315]
[1757142455332,3.2078,4303.0,4302.6,0.3123]
[1757142455638,0.2114,4302.7,4302.6,0.707]
[1757142456128,0.4048,4302.7,4302.6,0.707]
[1757142458333,3.2078,4303.0,4302.6,0.3947]
[1757142458530,0.80640678,4302.9,4302.8,0.3947]
[1757142458836,0.80640678,4302.9,4302.8,0.707]
[1757142459227,0.2114,4302.9,4302.8,0.707]
[1757142460135,0.4048,4302.9,4302.8,0.707]
[1757142468145,0.99927893,4302.9,4302.8,0.707]
[1757142469847,3.2078,4303.0,4302.9,0.3213]
[1757142470143,3.80245204,4303.0,4302.9,0.7411]
[1757142470844,0.59465204,4303.0,4302.9,0.7411]
[1757142471645,0.79275204,4303.0,4302.9,0.7411]
[1757142473951,0.98775204,4303.0,4302.9,0.7411]
[1757142474549,0.79275204,4303.0,4302.9,0.7411]
[1757142474746,0.59465204,4303.0,4302.9,0.7411]
[1757142475051,0.98775204,4303.0,4302.9,0.7411]
[1757142476051,0.79275204,4303.0,4302.9,0.7411]
[1757142477453,0.98775204,4303.0,4302.9,0.7411]
[1757142477647,1.25435204,4303.0,4302.9,0.3213]
[1757142477854,1.98577146,4303.0,4302.9,0.3213]
[1757142478653,1.98577146,4303.0,4302.9,0.535]
[1757142479051,1.71917146,4303.0,4302.9,0.7411]
[1757142479456,1.98577146,4303.0,4302.9,0.7411]
[1757142479646,0.98775204,4303.0,4302.9,0.7411]
[1757142480048,1.25435204,4303.0,4302.9,0.7411]
[1757142480849,0.98775204,4303.0,4302.9,0.7411]
[1757142481658,1.25435204,4303.0,4302.9,0.7411]
[1757142483059,0.98775204,4303.0,4302.9,0.7411]
[1757142483763,0.59465204,4303.0,4302.9,0.7411]
[1757142483958,0.59465204,4303.0,4302.9,1.47251942]
[1757142485057,0.59465204,4303.0,4302.9,1.70551942]
[1757142496973,1.25435204,4303.0,4302.9,0.9741]
[1757142497469,0.98775204,4303.0,4302.9,0.9741]
[1757142505476,0.59465204,4303.0,4302.9,0.9741]
[1757142509883,0.402,4303.6,4303.5,0.1278]
[1757142510075,0.99945263,4303.6,4303.5,0.8669]
[1757142510274,0.99945263,4303.6,4303.5,1.0796]
[1757142511081,1.26555263,4303.6,4303.5,1.0796]
[1757142514590,0.99945263,4303.6,4303.5,1.0796]
[1757142519787,1.26555263,4303.6,4303.5,0.8669]
[1757142520497,1.26555263,4303.6,4303.5,0.5265]
[1757142523795,0.80055263,4303.6,4303.5,1.0796]
[1757142528001,3.4739,4304.6,4303.5,5.31197]
[1757142528201,3.6098,4304.6,4304.5,0.8466]
[1757142528392,3.4109,4304.6,4304.5,1.13203362]
[1757142528595,3.2078,4304.6,4304.5,1.13203362]
[1757142528998,3.4222,4304.6,4304.5,1.13203362]
[1757142530106,4.01954675,4304.6,4304.5,1.13203362]
[1757142532002,4.22164675,4304.6,4304.5,1.13203362]
[1757142534004,1.01384675,4304.6,4304.5,1.13203362]
[1757142534904,1.01384675,4304.6,4304.5,1.13151537]
[1757142536503,0.59734675,4304.6,4304.5,1.13151537]
[1757142537107,3.2078,4305.2,4304.5,4.33931537]
[1757142537308,1.01240836,4305.1,4305.0,0.8157]
[1757142537606,1.01240836,4305.1,4305.0,1.10061537]
[1757142537792,1.27860836,4305.1,4305.0,1.10061537]
[1757142539907,1.01240836,4305.1,4305.0,1.10061537]
[1757142540115,0.59590836,4305.1,4305.0,1.10061537]
[1757142540305,0.2662,4305.8,4305.1,0.3067]
[1757142540505,1.27833425,4305.7,4305.6,0.5049]
[1757142540807,1.27833425,4305.7,4305.6,0.78981537]
[1757142542401,1.01213425,4305.7,4305.6,0.98331537]
[1757142543211,3.2078,4305.9,4305.6,0.98331537]
[1757142543505,0.2144,4305.8,4305.7,0.98331537]
[1757142544901,0.6827,4305.8,4305.7,0.98331537]
[1757142546112,0.4165,4305.8,4305.7,0.98331537]
[1757142551807,3.2078,4305.9,4305.7,0.98331537]
[1757142552014,3.2078,4305.9,4305.8,0.59161537]
[1757142552313,3.4222,4305.9,4305.8,0.98331537]
[1757142552816,3.2078,4306.5,4306.0,0.1173]
[1757142553021,3.4222,4306.5,4306.4,0.3917]
[1757142553320,3.6243,4306.5,4306.4,0.6984]
[1757142553512,3.8905,4306.5,4306.4,0.6984]
[1757142553713,3.8905,4306.5,4306.4,0.5049]
[1757142554013,3.6243,4306.5,4306.4,0.6984]
[1757142554208,3.8905,4306.5,4306.4,0.6984]
[1757142555210,3.8905,4306.5,4306.4,0.5049]
[1757142555410,3.8905,4306.5,4306.0,0.1173]
[1757142555614,3.8905,4306.5,4306.1,0.3067]
[1757142555812,0.2662,4306.4,4306.1,0.3067]
[1757142556117,0.6827,4306.4,4306.3,0.5049]
[1757142558712,0.4165,4306.4,4306.3,0.6984]
[1757142560123,0.2144,4306.4,4306.3,0.6984]
[1757142560423,3.4105,4306.5,4306.4,0.7369]
[1757142561218,3.8873,4306.5,4306.4,0.5289]
[1757142561411,3.8873,4306.5,4306.4,0.3148]
[1757142562220,4.48278459,4306.5,4306.4,0.3148]
[1757142562822,4.48278459,4306.5,4306.0,0.1173]
[1757142563024,0.4138,4306.2,4306.1,0.3148]
[1757142563326,0.6795,4306.2,4306.1,0.3148]
[1757142563819,0.6795,4306.2,4306.1,0.5289]
[1757142564216,0.6795,4306.2,4306.1,0.81380433]
[1757142565820,0.6795,4306.2,4306.1,0.81387069]
[1757142568124,1.27607543,4306.2,4306.1,0.81387069]
[1757142570131,1.01037543,4306.2,4306.1,1.02187069]
[1757142570428,1.27617543,4306.2,4306.1,1.02187069]
[1757142571625,1.01037543,4306.2,4306.1,1.02187069]
[1757142577030,0.59657543,4306.2,4306.1,1.75231269]
[1757142579537,0.59657543,4306.2,4306.1,6.08811269]
[1757142587342,3.2078,4306.5,4306.1,6.08811269]
[1757142587535,0.59809645,4306.4,4306.3,0.7369]
[1757142587735,0.59809645,4306.4,4306.3,1.02187069]
[1757142590231,3.2078,4306.5,4306.4,0.2902]
[1757142590436,3.2078,4306.5,4306.4,0.99367069]
[1757142591248,3.4109,4306.5,4306.4,0.99367069]
[1757142592637,4.00883998,4306.5,4306.4,0.99367069]
[1757142594046,3.4109,4306.5,4306.4,0.99367069]
[1757142594643,3.2078,4306.5,4306.4,0.99367069]
[1757142594848,3.4109,4306.5,4306.4,0.99367069]
[1757142595350,3.6044,4306.5,4306.4,0.99367069]
[1757142595846,4.20234209,4306.5,4306.4,0.99367069]
[1757142597748,4.46844209,4306.5,4306.4,0.99367069]
[1757142597949,4.46844209,4306.5,4306.4,0.78697069]
[1757142600244,4.46844209,4306.5,4306.4,0.57517069]
[1757142600444,8.70065209,4306.5,4306.4,0.01887069]
[1757142600758,8.20234209,4306.5,4306.2,0.2902]
[1757142601050,0.59794209,4306.4,4306.3,0.2902]
[1757142601448,0.59794209,4306.4,4306.3,0.502]
[1757142604254,1.32838409,4306.4,4306.3,0.2902]
[1757142604455,1.32838409,4306.4,4306.1,4.3358]
[1757142604652,0.59794209,4306.3,4306.2,0.2902]
[1757142605255,0.59794209,4306.3,4306.1,4.3358]
[1757142605455,0.59794209,4306.2,4306.1,4.626]
[1757142608153,0.59794209,4306.2,4306.1,4.8378]
[1757142609657,0.59794209,4306.2,4306.1,5.0445]
[1757142610055,0.2902,4306.9,4306.1,4.7543]
[1757142610262,0.6868,4306.9,4306.8,0.2118]
[1757142610557,0.6868,4306.9,4306.8,0.7087]
[1757142610852,0.6868,4306.9,4306.5,0.1185]
[1757142611058,0.6868,4306.7,4306.6,0.5232]
[1757142611249,1.417242,4306.7,4306.6,0.2902]
[1757142614861,0.2031,4306.7,4306.6,0.7087]
[1757142615062,0.2031,4306.7,4306.5,0.1185]
[1757142615063,0.730442,4306.9,4306.7,0.2902]
[1757142615257,0.730442,4306.9,4306.5,0.1185]
[1757142615258,1.417242,4306.9,4306.8,0.502]
[1757142619470,1.417242,4306.9,4306.8,0.7087]
[1757142620175,1.127042,4306.9,4306.8,0.7087]
[1757142622068,2.02710602,4306.9,4306.8,0.502]
[1757142622270,2.02710602,4306.9,4306.8,0.2902]
[1757142622862,2.02710602,4306.9,4306.8,0.4908]
[1757142623064,2.02710602,4306.9,4306.8,0.6885]
[1757142625979,2.02710602,4306.9,4306.8,0.4908]
[1757142627977,1.29666402,4306.9,4306.8,0.4908]
[1757142628177,2.02710602,4306.9,4306.8,0.4908]
[1757142631482,1.29666402,4306.9,4306.8,0.4908]
[1757142632987,1.29666402,4306.9,4306.8,0.6885]
[1757142634685,1.52966402,4306.9,4306.8,0.4908]
[1757142634886,1.52966402,4306.9,4306.8,0.6885]
[1757142635085,1.22586402,4306.9,4306.8,0.6885]
[1757142636197,0.99286402,4306.9,4306.8,0.6885]
[1757142636694,1.29666402,4306.9,4306.8,0.6885]
[1757142638999,0.99286402,4306.9,4306.8,0.6885]
[1757142641093,1.29666402,4306.9,4306.8,0.6885]
[1757142643401,0.99286402,4306.9,4306.8,0.6885]
[1757142643596,0.59626402,4306.9,4306.8,0.6885]
[1757142646399,0.79346402,4306.9,4306.8,0.6885]
[1757142647898,0.99286402,4306.9,4306.8,0.6885]
[1757142648104,1.29666402,4306.9,4306.8,0.2902]
[1757142648494,1.29666402,4306.9,4306.8,0.4908]
[1757142653108,1.29666402,4306.9,4306.8,0.684]
[1757142653308,1.29666402,4306.9,4306.8,0.4908]
[1757142662408,1.29666402,4306.9,4306.8,0.684]
[1757142662607,0.59626402,4306.9,4306.8,0.684]
[1757142664112,0.59626402,4306.9,4306.8,0.96887802]
[1757142666414,3.2078,4307.6,4306.8,5.20106801]
[1757142666712,0.59629109,4307.5,4307.4,0.4013]
[1757142666911,0.59629109,4307.5,4307.4,1.22497802]
[1757142667717,3.2078,4307.6,4307.5,0.8309]
[1757142667915,3.2078,4307.6,4307.5,1.11577802]
[1757142668419,3.7203,4307.6,4307.5,1.11577802]
[1757142669117,3.9244,4307.6,4307.5,1.11577802]
[1757142669711,3.9244,4307.6,4307.5,0.28487802]
[1757142673122,3.9244,4307.6,4306.6,3.5136]
[1757142673123,0.1218,4307.5,4306.6,3.5136]
[1757142673424,0.7166,4306.7,4306.6,0.9401]
[1757142674319,0.7166,4306.7,4306.6,4.1479]
[1757142679429,0.5125,4306.7,4306.6,4.1479]
[1757142679624,0.9473,4307.4,4307.3,0.2011]
[1757142679819,1.30800734,4307.4,4307.3,0.712]
[1757142682731,1.30800734,4307.4,4307.3,0.2011]
[1757142683123,1.30800734,4307.4,4307.3,0.5175]
[1757142683725,1.30800734,4307.4,4307.3,0.712]
[1757142694830,0.3121,4307.8,4307.7,0.3956]
[1757142695035,0.59404276,4308.0,4307.7,0.712]
[1757142695236,0.59404276,4307.9,4307.8,0.3164]
[1757142695439,1.10284276,4307.9,4307.8,0.712]
[1757142696438,0.5088,4307.9,4307.8,0.712]
[1757142697937,0.7143,4307.9,4307.8,0.712]
[1757142698646,3.2078,4308.1,4308.0,0.125]
[1757142698936,0.1174,4310.0,4309.0,0.2011]
[1757142698937,0.7143,4309.1,4309.0,0.2011]
[1757142699136,0.7143,4309.1,4309.0,3.8364]
[1757142699340,0.7143,4309.1,4309.0,4.12299702]
[1757142699552,0.7143,4309.1,4309.0,3.72739702]
[1757142700441,0.7143,4309.1,4309.0,3.49339702]
[1757142700642,0.7143,4309.1,4309.0,3.72739702]
[1757142700840,0.7143,4309.1,4308.5,3.4418]
[1757142701041,0.7143,4308.6,4308.5,3.2078]
[1757142701244,0.7143,4308.6,4308.5,3.49329204]
[1757142701647,0.7143,4308.6,4308.5,3.2078]
[1757142701843,0.7143,4308.6,4308.5,3.4932185]
[1757142702145,0.7143,4308.6,4308.5,3.2078]
[1757142704245,0.7143,4308.6,4308.5,3.4089]
[1757142705742,0.7143,4308.6,4308.5,3.4418]
[1757142707750,0.7143,4308.6,4308.5,3.6429]
[1757142708550,0.7143,4308.6,4308.5,3.2078]
[1757142709550,0.4022,4308.6,4308.0,3.2078]
[1757142709850,0.7206,4308.1,4308.0,3.4418]
[1757142710046,0.7206,4308.1,4308.0,3.2078]
[1757142710650,0.7206,4307.8,4307.7,0.234]
[1757142710954,0.7206,4307.8,4307.7,0.4407]
[1757142715251,0.7206,4307.8,4307.7,0.8655]
[1757142716757,0.7206,4307.8,4307.7,0.6373]
[1757142718161,0.3196,4307.8,4307.7,0.8655]
[1757142718661,0.5254,4307.8,4307.7,0.8655]
[1757142719662,0.7206,4307.8,4307.7,0.4407]
[1757142722265,0.7206,4307.8,4307.7,0.72659596]
[1757142722562,0.7206,4307.8,4307.7,0.92319596]
[1757142723063,0.3196,4307.8,4307.7,1.15139596]
[1757142723360,0.1187,4308.0,4307.7,1.15139596]
[1757142723559,0.3196,4307.9,4307.8,0.2282]
[1757142723761,0.3196,4307.9,4307.8,0.6315]
[1757142723958,0.3196,4307.9,4307.8,0.91923871]
[1757142723959,0.5254,4307.9,4307.8,0.91923871]
[1757142726157,0.5254,4307.9,4307.8,4.12703871]
[1757142726856,0.3196,4307.9,4307.8,4.12703871]
[1757142728361,0.3196,4308.4,4308.3,0.4033]
[1757142728565,0.3196,4308.4,4308.3,0.6373]
[1757142728761,0.3196,4308.4,4308.3,0.92511324]
[1757142728968,0.3196,4308.4,4308.3,1.15331324]
[1757142729362,0.5254,4308.4,4308.3,1.15331324]
[1757142729867,0.5254,4308.4,4308.3,4.36111324]
[1757142731468,0.7206,4308.4,4308.3,4.13291324]
[1757142735072,0.7206,4308.4,4308.3,3.93631324]
[1757142735375,1.29723152,4308.4,4308.3,0.52181324]
[1757142736371,1.29723152,4308.4,4308.3,0.72851324]
[1757142736676,1.29723152,4308.4,4308.3,0.72893]
[1757142737083,1.29723152,4308.4,4308.3,1.15373]
[1757142737977,1.29723152,4308.4,4308.3,0.92553]
[1757142739388,1.29723152,4308.4,4308.3,0.9256087]
[1757142739572,1.29723152,4308.4,4308.3,1.1535087]
[1757142740170,1.29723152,4308.4,4308.3,0.9256087]
[1757142746792,1.29723152,4308.4,4308.3,1.1537087]
[1757142747674,1.29723152,4308.4,4308.3,0.9256087]
[1757142748979,1.29723152,4308.4,4308.3,1.1537087]
[1757142749976,1.29723152,4308.4,4308.3,0.8654]
[1757142750274,1.29723152,4308.4,4308.3,1.15380801]
[1757142750677,0.89623152,4308.4,4308.3,1.15380801]
[1757142750984,0.89623152,4308.4,4308.3,4.36160801]
[1757142751782,0.89623152,4308.4,4308.3,5.09166253]
[1757142752087,1.10173152,4308.4,4308.3,5.09166253]
[1757142752277,1.10173152,4308.4,4308.3,4.36160801]
[1757142752784,0.89623152,4308.4,4308.3,4.36160801]
[1757142753188,1.10173152,4308.4,4308.3,4.36160801]
[1757142756391,0.57663152,4308.4,4308.3,4.593718]
[1757142756791,0.57663152,4308.4,4308.3,4.36160801]
[1757142757181,0.57663152,4308.4,4308.3,4.36266056]
[1757142757591,2.0,4309.3,4308.3,4.13456056]
[1757142757787,1.09176424,4308.9,4308.8,0.3962]
[1757142758091,1.09176424,4308.9,4308.8,0.91966056]
[1757142759491,1.30246424,4308.9,4308.8,0.91966056]
[1757142762994,0.88626424,4308.9,4308.8,0.91966056]
[1757142763293,0.88626424,4308.9,4308.8,0.52346056]
[1757142763294,1.30246424,4308.9,4308.8,0.52346056]
[1757142763484,1.30246424,4308.9,4308.8,0.28946056]
[1757142764292,1.30246424,4308.9,4308.8,0.91376056]
[1757142765994,1.30246424,4308.9,4308.8,0.68566056]
[1757142770606,1.30246424,4308.9,4308.8,0.28946056]
[1757142773406,1.30246424,4308.9,4308.8,0.69506056]
[1757142773601,1.30246424,4308.9,4308.8,0.49846056]
[1757142774411,1.30246424,4308.9,4308.8,0.28946056]
[1757142775409,1.29486424,4308.9,4308.8,0.69506056]
[1757142775909,1.08516424,4308.9,4308.8,4.13066056]
[1757142778710,1.29486424,4308.9,4308.8,3.90286056]
[1757142780809,1.29486424,4308.9,4308.8,3.73026056]
[1757142781408,1.29486424,4308.9,4308.8,3.93926056]
[1757142782915,1.29486424,4308.9,4308.8,4.36366056]
[1757142783308,0.88626424,4308.9,4308.8,4.36366056]
[1757142783802,1.29486424,4308.9,4308.8,4.13586056]
[1757142786705,0.57766424,4308.9,4308.8,4.36366056]
[1757142786910,0.87446424,4308.9,4308.8,4.36366056]
[1757142788713,0.2968,4308.9,4308.8,4.36366056]
[1757142791216,2.0,4309.3,4308.8,4.36366056]
[1757142791420,0.57743591,4309.2,4309.0,0.4056]
[1757142791621,0.87423591,4309.1,4309.0,0.4056]
[1757142791918,1.07313591,4309.1,4309.0,0.92891181]
[1757142792418,1.28283591,4309.1,4309.0,0.92891181]
[1757142792722,1.28283591,4309.1,4309.0,0.69491181]
[1757142792915,1.28283591,4309.1,4309.0,0.52331181]
[1757142793715,1.28283591,4309.1,4309.0,0.73231181]
[1757142796925,1.28283591,4309.1,4309.0,1.15671181]
[1757142797621,1.28283591,4309.1,4309.0,0.92891181]
[1757142797820,0.87423591,4309.1,4309.0,1.15671181]
[1757142798022,1.07313591,4309.1,4309.0,1.15671181]
[1757142798318,1.28283591,4309.1,4309.0,0.92891181]
[1757142799820,1.28283591,4309.1,4309.0,0.73231181]
[1757142801722,1.28283591,4309.1,4309.0,0.94571181]
[1757142806422,1.28283591,4309.1,4309.0,0.94580391]
[1757142809220,1.28283591,4309.1,4309.0,0.73240391]
[1757142811026,0.87423591,4309.1,4309.0,1.17400391]
[1757142811221,0.2968,4309.1,4309.0,1.17400391]
[1757142812526,0.4998,4309.1,4309.0,1.17400391]
[1757142815416,0.4998,4309.1,4309.0,1.90327834]
[1757142816718,0.4986,4309.2,4309.1,0.2282]
[1757142816925,0.4986,4309.2,4309.1,0.94340391]
[1757142817128,0.4986,4309.2,4309.1,1.67267834]
[1757142817316,0.4986,4309.2,4309.1,1.67413456]
[1757142820326,0.7069,4309.2,4309.1,1.44593456]
[1757142820525,0.7069,4309.2,4309.1,1.02013456]
[1757142820725,0.7069,4309.2,4309.1,1.23253456]
[1757142822035,0.7069,4309.2,4309.1,1.67413456]
[1757142822431,0.7069,4309.2,4309.1,1.44593456]
[1757142824835,0.7069,4309.2,4309.1,0.29086013]
[1757142825024,0.7069,4309.2,4309.1,0.50326013]
[1757142827827,0.7069,4309.2,4309.1,0.29086013]
[1757142828839,0.7069,4309.2,4309.1,0.49356013]
[1757142831936,0.7069,4309.2,4309.1,1.65703456]
[1757142832740,0.2956,4309.2,4309.1,1.65703456]
[1757142841248,0.2956,4309.2,4309.1,1.36617443]
[1757142841446,2.0,4309.3,4309.2,0.6369]
[1757142841650,2.0,4309.3,4309.2,0.92785857]
[1757142842247,2.2989,4309.3,4309.2,0.92785857]
[1757142845861,2.5086,4309.3,4309.2,0.92785857]
[1757142846064,2.7222,4309.3,4309.2,0.70005857]
[1757142853066,2.7222,4309.3,4309.2,0.29095857]
[1757142853372,2.7222,4309.3,4309.2,0.52395857]
[1757142855169,2.7222,4309.3,4309.2,1.253233]
[1757142855672,2.7222,4309.3,4309.2,1.25298363]
[1757142856768,2.7222,4309.3,4309.2,0.96227443]
[1757142857068,2.7222,4309.3,4309.2,1.25299759]
[1757142866874,2.7222,4309.3,4309.2,0.29072316]
[1757142867071,3.29830319,4309.3,4309.2,0.52372316]
[1757142869373,2.7222,4309.3,4309.2,0.52372316]
[1757142871277,2.3101,4309.3,4309.2,1.66249759]